[Event "101st Irish Championship 2022"]
[Site "Dublin"]
[Date "2022.07.05"]
[Round "4.1"]
[White "Li, Henry"]
[Black "Kanyamarala, Tarun"]
[Result "0-1"]
[ECO "B23"]
[WhiteElo "2319"]
[BlackElo "2379"]
[Annotator "TA"]
[PlyCount "56"]
[EventDate "2022.07.05"]
[EventType "swiss"]
[EventCountry "IRL"]
[SourceTitle "playchess.com"]
[Source "ChessBase"]
[SourceQuality "1"]
[TimeControl "40/6300+30:1800+30"]

{[%evp 9,56,0,4,0,-6,0,14,0,11,-6,8,0,8,0,0,0,0,0,0,12,-4,-31,-31,-94,-80,-174,-88,-79,-49,-279,-279,-268,-273,-354,-351,-354,-325,-370,-366,-499,-321,-546,-539,-762,-752,-1066,-926,-1032,-980]} 1. e4 {[%emt 0:00:30]} c5 {[%emt 0:00:30]} 2. Nc3 {[%emt 0:00:30]} d6 {[%emt 0:00:30]} 3. d4 {[%emt 0:00:30]} cxd4 {[%emt 0:00:30]} 4. Qxd4 {[%emt 0:00:30]} Nc6 {[%emt 0:00:30]} 5. Qd2 {[%emt 0:00:30]} g6 {[%emt 0:00:30]} 6. b3 {[%emt 0:00:30] B23: Closed Sicilian: Lines without g3.} Bh6 {[%emt 0:00:30]} 7. f4 {[%emt 0:00:30]} Nf6 {[%emt 0:00:30]} 8. Bb2 {[%emt 0:00:30] The position is equal.} O-O {[%emt 0:00:30]} 9. O-O-O {[%emt 0:00:30]} e5 {[%emt 0:00:30]} 10. g3 {[%emt 0:00:30]} Re8 {[%emt 0:00:30]} 11. Bg2 {[%emt 0:00:30]} exf4 {[%emt 0:00:30][%cal Of4f3] Strongly threatening ...f3!} 12. gxf4 {[%emt 0:00:30] Threatening h3.} Bg4 {[%emt 0:00:30]} 13. Rf1 {[%emt 0:00:30]} a5 {[%emt 0:00:30][%cal Oa5a4] [#]} 14. h3 $146 {[%emt 0:00:30]} ({Predecessor:} 14. a4 Rc8 15. Kb1 Nb4 16. h3 Bh5 17. Rf2 Qb6 18. Qe1 Bg7 19. Nge2 Nxe4 20. Bxe4 Rxe4 21. Nxe4 Bxb2 {½-½ (55) Klenburg,M (2346)-Tscheuschner,G (2150) Berlin 2022}) 14... Bh5 {[%emt 0:00:30][%cal Oa5a4]} 15. a4 {[%emt 0:00:30]} Nb4 {[%emt 0:00:30]} 16. Nf3 {[%emt 0:00:30]} (16. Kb1 $15) 16... d5 $17 {[%emt 0:00:30]} ({Of course not} 16... Nxe4 $6 17. Nxe4 Rxe4 18. Nd4 $11) 17. e5 {[%emt 0:00:30]} (17. exd5 $17 Nfxd5 18. Nxd5 Qxd5 19. Qd4 Qxd4 20. Nxd4) 17... Bxf3 {[%emt 0:00:30]} (17... Ne4 $19 18. Nxe4 dxe4 19. Qxd8 Raxd8) 18. Bxf3 {[%emt 0:00:30]} Rxe5 {[%emt 0:00:30] And now ...Rf5 would win.} 19. Nxd5 $2 {[%emt 0:00:30] Now White is beyond hope.} Rxd5 $19 {[%emt 0:00:30]} 20. Bxd5 {[%emt 0:00:30]} Nfxd5 {[%emt 0:00:30] Pair of Knights!} ({Not} 20... Nbxd5 $2 21. Kb1 $19) 21. Qd4 {[%emt 0:00:30][%csl Gb2][%cal Rd4h8]} f6 {[%emt 0:00:30]} 22. Kb1 {[%emt 0:00:30]} Qc8 {[%emt 0:00:30]} 23. Rh2 {[%emt 0:00:30]} Qf5 {[%emt 0:00:30] aiming for ...Re8.} 24. Ka1 {[%emt 0:00:30]} Rc8 {[%emt 0:00:30]} ({Avoid the trap} 24... Bxf4 $2 25. Rxf4 Nxf4 26. Qxf6 Qxf6 27. Bxf6 $19) 25. c4 {[%emt 0:00:30]} (25. c3 {only move.} Nc6 26. Qc4) 25... Bxf4 {[%emt 0:00:30] Black is clearly winning.} 26. Rhf2 {[%emt 0:00:30] [#]} Qxh3 $1 {[%emt 0:00:30]} 27. Qd1 {[%emt 0:00:30]} (27. Rf3 Nc2+) 27... Ne3 {[%emt 0:00:30]} 28. Qe2 {[%emt 0:00:30] [#]} Re8 $1 {[%emt 0:00:30] Weighted Error Value: White=0.74/Black=0.18 (very precise)} 0-1

[Event "101st Irish Championship 2022"]
[Site "Dublin"]
[Date "2022.07.05"]
[Round "4.2"]
[White "Baburin, Alexander"]
[Black "O`Gorman, Tom"]
[Result "1/2-1/2"]
[ECO "D37"]
[WhiteElo "2400"]
[BlackElo "2401"]
[Annotator "TA"]
[PlyCount "76"]
[EventDate "2022.07.05"]
[EventType "swiss"]
[EventCountry "IRL"]
[SourceTitle "playchess.com"]
[Source "ChessBase"]
[SourceQuality "1"]
[TimeControl "40/6300+30:1800+30"]

{[%evp 11,76,-4,7,0,14,19,9,13,32,12,16,15,13,12,10,6,17,7,34,22,13,0,0,0,0,14,43,29,33,36,27,31,46,56,91,85,133,91,141,124,133,89,152,30,30,0,0,0,0,0,0,0,68,68,72,80,77,78,81,78,81,75,80,6,6,8,10]} 1. d4 {[%emt 0:05:46]} d5 {[%emt 0:00:19]} 2. c4 {[%emt 0:01:03]} e6 {[%emt 0:00:15]} 3. Nf3 {[%emt 0:00:18]} a6 {[%emt 0:00:19]} 4. e3 {[%emt 0:12:26]} Nf6 {[%emt 0:01:14]} 5. Nc3 {[%emt 0:08:20]} Be7 {[%emt 0:00:50]} 6. a3 {[%emt 0:04:19]} O-O {[%emt 0:02:08]} 7. c5 {[%emt 0:02:56] D37: Queen's Gambit Declined: 5 Bf4.} Nbd7 {[%emt 0:02:10]} 8. b4 {[%emt 0:03:06]} c6 {[%emt 0:01:59]} 9. Bb2 {[%emt 0:00:23]} Qc7 {[%emt 0:03:54] [#]} 10. Be2 $146 {[%emt 0:07:20]} ({Predecessor:} 10. Ne2 b6 11. Ng3 bxc5 12. bxc5 Rb8 13. Bc3 e5 14. Nxe5 Nxe5 15. dxe5 Nd7 16. Bd3 Nxe5 17. Bxh7+ Kxh7 {0-1 (43) Velichko,A (2219)-Murtazin,B (2362) Samara 2016}) 10... e5 {[%emt 0:02:59]} 11. O-O {[%emt 0:00:12]} e4 {[%emt 0:05:03]} 12. Nd2 {[%emt 0:00:42]} Ne8 {[%emt 0:00:47]} 13. a4 {[%emt 0:04:02]} f5 {[%emt 0:01:09]} 14. b5 {[%emt 0:07:07]} f4 {[%emt 0:06:17]} 15. exf4 {[%emt 0:08:17]} Qxf4 {[%emt 0:01:41]} 16. bxc6 {[%emt 0:06:20]} bxc6 {[%emt 0:00:14]} 17. Bc1 {[%emt 0:00:19][%cal Od2e4] Ndxe4! is the strong threat.} Qf6 {[%emt 0:40:56]} 18. Nb3 {[%emt 0:03:57]} Nxc5 {[%emt 0:00:47]} 19. Nxd5 {[%emt 0:06:28]} cxd5 {[%emt 0:00:19]} 20. dxc5 {[%emt 0:00:39]} Nc7 {[%emt 0:01:23][%cal Oe7c5]} 21. Be3 {[%emt 0:00:39]} Rb8 {[%emt 0:02:14]} 22. Rc1 $1 {[%emt 0:00:59]} Rd8 {[%emt 0:15:27]} 23. Nd4 {[%emt 0:09:24]} Rb4 {[%emt 0:02:54]} ({Black should try} 23... Rb2) 24. a5 {[%emt 0:06:20]} Bd7 {[%emt 0:03:15]} (24... Rb2 $142) 25. c6 $16 {[%emt 0:03:59]} Be8 {[%emt 0:00:43]} 26. Qd2 {[%emt 0:00:44]} h6 {[%emt 0:05:23]} (26... Rdb8 $142) 27. Rb1 {[%emt 0:04:11]} (27. f3 $16) 27... Rdb8 $1 $11 {[%emt 0:03:35]} ({Much less strong is} 27... Rxb1 28. Rxb1 Bd6 29. Rb6 $16) 28. Qc2 {[%emt 0:00:38]} Bd6 {[%emt 0:01:40] [#] White must now prevent ...Be5.} 29. Rxb4 {[%emt 0:03:01]} Rxb4 {[%emt 0:00:02]} 30. Rd1 {[%emt 0:01:03]} Be5 {[%emt 0:01:34][%cal Re5d4]} 31. Qc5 {[%emt 0:01:48]} Qd6 {[%emt 0:01:46]} (31... Bd6 $11 32. Qa7 {[#]} Bh5 $1) 32. Qxd6 $14 {[%emt 0:00:49]} Bxd6 {[%emt 0:00:01]} 33. Nf5 {[%emt 0:00:29]} Be5 {[%emt 0:02:52]} 34. Ne7+ {[%emt 0:01:31]} Kf7 {[%emt 0:00:43]} 35. Nxd5 {[%emt 0:00:23] 0x0.000bd133ae4fdp-1022s more active pieces.} Nxd5 {[%emt 0:00:38]} 36. Rxd5 {[%emt 0:00:05]} Rb1+ {[%emt 0:00:11]} 37. Rd1 {[%emt 0:02:26]} ({Better is} 37. Bf1 $16 Bc7 38. Rc5) 37... Rxd1+ $11 {[%emt 0:00:08]} 38. Bxd1 {[%emt 0:00:04] Threatens to win with Bh5+.} Bxc6 {[%emt 0:00:05] Weighted Error Value: White=0.16 (very precise) /Black=0.14 (very precise)} 1/2-1/2

[Event "101st Irish Championship 2022"]
[Site "Dublin"]
[Date "2022.07.05"]
[Round "4.4"]
[White "O`Donnell, Conor"]
[Black "Mats, Diana"]
[Result "1-0"]
[ECO "B36"]
[WhiteElo "2269"]
[BlackElo "2028"]
[Annotator "TA"]
[PlyCount "81"]
[EventDate "2022.07.05"]
[EventType "swiss"]
[EventCountry "IRL"]
[SourceTitle "playchess.com"]
[Source "ChessBase"]
[SourceQuality "1"]
[TimeControl "40/6300+30:1800+30"]

{[%evp 27,81,60,64,50,82,76,120,120,137,123,139,135,156,162,196,191,204,140,129,119,144,88,87,87,87,91,65,76,70,77,90,89,109,108,108,124,151,108,108,103,281,280,272,261,668,297,490,195,353,323,417,108,897,749,29973,29974]} 1. e4 {[%emt 0:00:41]} c5 {[%emt 0:04:27]} 2. Nf3 {[%emt 0:01:58]} Nc6 {[%emt 0:00:18]} 3. d4 {[%emt 0:01:19]} cxd4 {[%emt 0:00:17]} 4. Nxd4 {[%emt 0:00:05]} g6 {[%emt 0:01:38]} 5. c4 {[%emt 0:00:15]} Bg7 {[%emt 0:00:33]} 6. Be3 {[%emt 0:00:11]} Nf6 {[%emt 0:01:39]} 7. Nc3 {[%emt 0:00:26]} Nxd4 {[%emt 0:00:42]} 8. Qxd4 {[%emt 0:01:34]} d6 {[%emt 0:01:00]} 9. Be2 {[%emt 0:01:17]} O-O {[%emt 0:00:35]} 10. Qd2 {[%emt 0:01:36]} Be6 {[%emt 0:15:21]} 11. O-O {[%emt 0:01:14]} Rc8 {[%emt 0:06:28]} 12. b3 {[%emt 0:00:27]} Nd7 {[%emt 0:08:55]} 13. Rac1 {[%emt 0:05:54]} Nc5 {[%emt 0:02:36]} 14. f3 {[%emt 0:02:27]} a5 {[%emt 0:05:45]} 15. Kh1 {[%emt 0:18:55] [#] B36: Sicilian: Maroczy Bind: Gurgenidze System.} f5 $146 {[%emt 0:03:36]} ({Predecessor:} 15... Qb6 16. Rfd1 Qb4 17. Bf1 Ra8 18. Qe1 a4 19. Nd5 Qxe1 20. Nxe7+ Kh8 21. Rxe1 axb3 22. axb3 Nxb3 {½-½ (40) Koyias,K (2280)-Sideris,T (2050) Athens 1997}) 16. exf5 {[%emt 0:01:38]} gxf5 {[%emt 0:03:20]} 17. Rfe1 {[%emt 0:05:51] White is better.} Qe8 {[%emt 0:03:46]} 18. Bf1 {[%emt 0:10:46] Threatens to win with Bxc5.} Qf7 {[%emt 0:03:36]} 19. Ne2 {[%emt 0:06:10]} Bd7 {[%emt 0:04:18]} 20. Nf4 {[%emt 0:07:15]} a4 {[%emt 0:07:59]} 21. b4 {[%emt 0:10:39]} Ne6 {[%emt 0:01:57]} 22. c5 {[%emt 0:07:09] Hoping for Bc4.} Nxf4 {[%emt 0:05:24]} 23. Bxf4 {[%emt 0:00:02]} e5 {[%emt 0:00:54] [#]} 24. Bh6 {[%emt 0:19:45]} ({White should play} 24. cxd6 $1 Rxc1 25. Qxc1) 24... dxc5 $16 {[%emt 0:06:51] [#]} 25. Bc4 $1 {[%emt 0:00:38]} Be6 {[%emt 0:00:24]} 26. Bxg7 {[%emt 0:00:08]} Kxg7 {[%emt 0:00:26]} 27. Bxe6 {[%emt 0:03:04]} Qxe6 {[%emt 0:00:07]} 28. bxc5 {[%emt 0:00:14]} Rfe8 {[%emt 0:04:02]} 29. Qb2 {[%emt 0:01:00]} Kg8 {[%emt 0:02:08]} 30. Qxb7 {[%emt 0:00:55]} Rb8 {[%emt 0:04:57]} 31. Qa7 {[%emt 0:02:10] 0x0.0017657d9737dp-1022s more active pieces.} Qxa2 {[%emt 0:03:14]} 32. c6 {[%emt 0:02:26][%cal Of3f4]} Ra8 {[%emt 0:03:44]} 33. Qc5 {[%emt 0:01:15]} Qe6 {[%emt 0:00:09]} (33... a3 $16) 34. f4 $1 $18 {[%emt 0:00:22][%cal Re1e5]} e4 {[%emt 0:00:16]} 35. Re3 {[%emt 0:00:11] aiming for Rg3+.} Kf7 $2 {[%emt 0:05:02]} (35... Qf6 36. c7 Kh8) 36. Rh3 {[%emt 0:00:17]} (36. Rb1 $142) 36... h6 $2 {[%emt 0:03:44]} (36... a3 {was called for.} 37. Rxh7+ (37. Rxa3 Rxa3 38. Qxa3 e3 $16) 37... Kg6) 37. c7 $2 {[%emt 0:01:26]} (37. Rg3 {Strongly threatening Rb1.} Red8 38. Qc3) 37... e3 $2 {[%emt 0:00:20]} (37... a3 38. Rxa3 Rxa3 39. Qxa3 e3) 38. Re1 {[%emt 0:00:44][%cal Rh3e3]} e2 {[%emt 0:00:12]} 39. Rd3 {[%emt 0:01:18] Dancing on a razor blade.} (39. Rg3 $18 {[%cal Oe1e2] Intending Rxe2! and mate.} a3 40. Qd4) 39... Re7 $2 {[%emt 0:02:56][%mdl 8192]} (39... a3 $16 40. Rd6 (40. Rxa3 Rxa3 41. Qxa3 Qc4 $16) 40... Qxd6 41. Qxd6 a2 42. Qd7+ Kg6) 40. Rd5 {[%emt 0:00:46]} Kg8 {[%emt 0:01:00]} 41. Re5 {[%emt 0:01:39] Weighted Error Value: White=0.51/Black=0.88} 1-0

[Event "101st Irish Championship 2022"]
[Site "Dublin"]
[Date "2022.07.05"]
[Round "4.5"]
[White "Keenan, Cathal"]
[Black "Flynn, Jacob"]
[Result "1/2-1/2"]
[ECO "C41"]
[WhiteElo "1811"]
[BlackElo "2199"]
[Annotator "TA"]
[PlyCount "161"]
[EventDate "2022.07.05"]
[EventType "swiss"]
[EventCountry "IRL"]
[SourceTitle "playchess.com"]
[Source "ChessBase"]
[SourceQuality "1"]
[TimeControl "40/6300+30:1800+30"]

{[%evp 11,161,31,37,37,40,39,35,39,58,47,57,58,63,48,61,42,50,-52,25,3,7,-20,15,0,25,0,18,0,115,119,140,137,175,52,32,-27,-11,-4,-10,-29,110,115,112,45,55,49,61,61,160,111,96,91,109,102,104,79,157,102,112,108,182,163,249,257,241,241,333,277,269,257,359,334,515,537,525,514,676,672,635,323,308,324,314,259,272,293,300,192,191,77,80,0,21,0,0,0,0,0,0,0,0,0,0,0,0,0,0,0,0,0,0,0,0,0,0,0,0,0,0,0,0,0,0,0,0,0,0,0,0,0,0,0,0,-8,0,-19,-19,-25,-25,-25,-25,-25,-25,-25,-25,-25,0,-25,-25,-25,-25,-25]} 1. e4 {[%emt 0:00:30]} d6 {[%emt 0:00:30]} 2. d4 {[%emt 0:00:30]} Nf6 {[%emt 0:00:30]} 3. Nc3 {[%emt 0:00:30]} e5 {[%emt 0:00:30]} 4. Nge2 {[%emt 0:00:30]} exd4 {[%emt 0:00:30]} 5. Nxd4 {[%emt 0:00:30]} Be7 {[%emt 0:00:30]} 6. g3 {[%emt 0:00:30]} O-O {[%emt 0:00:30]} 7. Bg2 {[%emt 0:00:30] C41: Philidor Defence.} c6 {[%emt 0:00:30]} 8. O-O {[%emt 0:00:30]} Re8 {[%emt 0:00:30]} 9. Re1 {[%emt 0:00:30] White is slightly better.} Qc7 {[%emt 0:00:30]} 10. h3 {[%emt 0:00:30] [#]} Nbd7 $146 {[%emt 0:00:30]} ({Predecessor:} 10... Bf8 11. Bf4 g6 12. g4 Nbd7 13. a4 a5 14. Bg3 Qb6 15. Qd2 Ne5 16. b3 h5 {1-0 (42) Salov,S (2135)-Aragones Melhem,G (2106) Prague 2020}) 11. g4 {[%emt 0:00:30]} Nc5 {[%emt 0:00:30]} 12. b3 {[%emt 0:00:30]} Bf8 {[%emt 0:00:30]} 13. Bb2 {[%emt 0:00:30]} Ne6 {[%emt 0:00:30]} 14. Nde2 {[%emt 0:00:30]} (14. Nce2 $14) 14... b5 {[%emt 0:00:30]} (14... h5 $1 $15) 15. Qd2 {[%emt 0:00:30]} Bb7 {[%emt 0:00:30]} 16. Ng3 {[%emt 0:00:30]} Nd7 {[%emt 0:00:30]} (16... d5 $5) 17. Rad1 {[%emt 0:00:30]} Nb6 {[%emt 0:00:30][%cal Od6d5]} 18. f4 {[%emt 0:00:30][%cal Bf2f4,Bf4f5][%mdl 32]} b4 {[%emt 0:00:30]} 19. Nce2 {[%emt 0:00:30]} c5 {[%emt 0:00:30]} (19... d5 $1 $11) 20. f5 $36 {[%emt 0:00:30][%mdl 2048] White is in control.} Nd4 {[%emt 0:00:30]} 21. Nxd4 {[%emt 0:00:30]} cxd4 {[%emt 0:00:30]} 22. Qxd4 {[%emt 0:00:30]} (22. Bxd4 $18 {Nh5 is the strong threat.} Rac8 23. Nh5 (23. Qxb4 $2 d5 $19)) 22... d5 $14 {[%emt 0:00:30] Hoping for ...Bc5.} 23. Qd3 {[%emt 0:00:30]} (23. Qe3 $14) 23... dxe4 {[%emt 0:00:30]} 24. Nxe4 {[%emt 0:00:30]} Nd5 {[%emt 0:00:30] Threatens to win with ...Nf4.} 25. Qc4 {[%emt 0:00:30]} Qb6+ {[%emt 0:00:30]} (25... Qa5 $1 $11 {keeps the balance.}) 26. Bd4 $16 {[%emt 0:00:30]} Qh6 {[%emt 0:00:30]} 27. Nc5 {[%emt 0:00:30]} (27. Qb5 $16 Bc6 28. g5 $1 Bxb5 29. gxh6) 27... Nb6 {[%emt 0:00:30]} 28. Qf1 {[%emt 0:00:30]} (28. Qxb4 $2 Bxg2 29. Kxg2 Nd5 $19) 28... Rxe1 {[%emt 0:00:30]} 29. Rxe1 {[%emt 0:00:30]} (29. Qxe1 $2 Bxg2 30. Kxg2 Bxc5 $19) 29... Qd2 {[%emt 0:00:30]} (29... Bxg2 $14 30. Qxg2 Rd8) 30. Qf2 {[%emt 0:00:30]} ({Don't take} 30. Nxb7 $6 Qxd4+ 31. Qf2 Qc3 $14) (30. Rd1 $142 Bxg2 31. Rxd2 Bxf1 32. Kxf1) 30... Qxf2+ {[%emt 0:00:30]} 31. Bxf2 {[%emt 0:00:30]} Bxg2 {[%emt 0:00:30]} 32. Kxg2 {[%emt 0:00:30]} Rc8 {[%emt 0:00:30] [#]} 33. Re2 $1 {[%emt 0:00:30] White is more active.} g6 {[%emt 0:00:30] [#]} (33... Rxc5 $142 34. Bxc5 Bxc5) (33... Nd5 34. Re4) 34. Nd3 {[%emt 0:00:30]} (34. Ne4 $142 $1) 34... Nd5 {[%emt 0:00:30]} 35. Bxa7 {[%emt 0:00:30]} Ra8 {[%emt 0:00:30]} (35... Nc3 $16 36. Re5 Nxa2) 36. Bd4 $18 {[%emt 0:00:30]} gxf5 {[%emt 0:00:30]} (36... Rxa2 $142 37. Kf3 Ra8) 37. gxf5 {[%emt 0:00:30]} ({But not} 37. Re5 $6 Nc7) 37... f6 {[%emt 0:00:30]} 38. Kf3 {[%emt 0:00:30]} Rxa2 {[%emt 0:00:30]} 39. Re8 {[%emt 0:00:30] Prevents Ra8. aiming for Bc5.} Kf7 {[%emt 0:00:30]} 40. Rd8 {[%emt 0:00:30]} Ra5 {[%emt 0:00:30]} 41. Ke4 {[%emt 0:30:30]} Ne7 {[%emt 0:30:30]} (41... Nc3+ $142 42. Bxc3 bxc3 43. Rd7+ Kg8) 42. Bc5 {[%emt 0:00:30]} Ra1 {[%emt 0:00:30]} 43. Bxb4 {[%emt 0:00:30]} Rh1 {[%emt 0:00:30]} 44. Nf4 {[%emt 0:00:30]} Rh2 {[%emt 0:00:30]} 45. Kd3 {[%emt 0:00:30]} Bh6 {[%emt 0:00:30]} 46. Rd7 {[%emt 0:00:30]} Bxf4 {[%emt 0:00:30]} 47. Rxe7+ {[%emt 0:00:30][%mdl 4096] Endgame KRB-KRB} Kg8 {[%emt 0:00:30]} 48. Ke4 {[%emt 0:00:30]} Be5 {[%emt 0:00:30]} 49. Re8+ {[%emt 0:00:30]} Kf7 {[%emt 0:00:30]} 50. Rc8 {[%emt 0:00:30]} (50. Rf8+ $18 {is more deadly.} Kg7 51. Rd8) 50... Rxh3 $16 {[%emt 0:00:30] Strongly threatening ...Rh4+.} 51. Bd2 {[%emt 0:00:30]} (51. Kd5 $16) 51... h5 {[%emt 0:00:30]} 52. b4 {[%emt 0:00:30]} Rh2 {[%emt 0:00:30]} 53. Be3 {[%emt 0:00:30] Black must now prevent b5.} Rh4+ {[%emt 0:00:30]} 54. Kf3 {[%emt 0:00:30]} Rxb4 {[%emt 0:00:30]} 55. Rh8 {[%emt 0:00:30]} Rh4 {[%emt 0:00:30]} 56. c4 {[%emt 0:00:30]} Rxc4 {[%emt 0:00:30]} 57. Rh7+ {[%emt 0:00:30]} Ke8 {[%emt 0:00:30]} 58. Rxh5 {[%emt 0:00:30]} Kd7 {[%emt 0:00:30]} 59. Rh8 {[%emt 0:00:30]} Ra4 {[%emt 0:00:30]} 60. Rg8 {[%emt 0:00:30]} Kc6 {[%emt 0:00:30]} 61. Rc8+ {[%emt 0:00:30]} Kd5 {[%emt 0:00:30]} 62. Rc5+ {[%emt 0:00:30]} Kd6 {[%emt 0:00:30]} 63. Rc8 {[%emt 0:00:30]} Rh4 {[%emt 0:00:30]} 64. Rd8+ {[%emt 0:00:30]} Kc6 {[%emt 0:00:30]} 65. Rc8+ {[%emt 0:00:30]} Kd5 {[%emt 0:00:30]} 66. Rc5+ {[%emt 0:00:30]} Kd6 {[%emt 0:00:30] And now ...Rh3+ would win.} 67. Rc8 {[%emt 0:00:30]} Rh3+ {[%emt 0:00:30]} 68. Ke4 {[%emt 0:00:30]} Rh4+ {[%emt 0:00:30]} 69. Kf3 {[%emt 0:00:30]} Ra4 {[%emt 0:00:30]} 70. Rg8 {[%emt 0:00:30]} Kd5 {[%emt 0:00:30]} 71. Rd8+ {[%emt 0:00:30]} Bd6 {[%emt 0:00:30]} 72. Re8 {[%emt 0:00:30]} Rh4 {[%emt 0:00:30]} 73. Re6 {[%emt 0:00:30]} Be5 {[%emt 0:00:30]} 74. Ra6 {[%emt 0:00:30]} Rh3+ {[%emt 0:00:30]} 75. Ke2 {[%emt 0:00:30]} Ke4 {[%emt 0:00:30][%csl LRe3,LRf5]} 76. Ra4+ {[%emt 0:00:30]} Kxf5 {[%emt 0:00:30]} 77. Kf2 {[%emt 0:00:30]} Rh2+ {[%emt 0:00:30]} 78. Kf3 {[%emt 0:00:30]} Rh3+ {[%emt 0:00:30]} 79. Kf2 $1 {[%emt 0:00:30]} Rh1 {[%emt 0:00:30]} 80. Kg2 {[%emt 0:00:30]} Rb1 {[%emt 0:00:30]} 81. Bd4 {[%emt 0:00:30] Blacks defense is rewarded with a draw.  Weighted Error Value: White=0.32/Black=0.31} 1/2-1/2